[Event "FIDE WCCC Open-12 2024"]
[Site "Montesilvano"]
[Date "2024.11.18"]
[Round "2.7"]
[White "Radzimski, Antoni"]
[Black "Sun, Kevin"]
[Result "1-0"]
[ECO "D36"]
[WhiteElo "2188"]
[BlackElo "1966"]
[PlyCount "143"]
[EventDate "2024.11.18"]
[EventType "swiss"]
[EventCountry "ITA"]
[TimeControl "5400+30"]

1. d4 {[%emt 0:00:31]} Nf6 {[%emt 0:00:06]} 2. c4 {[%emt 0:00:05]} e6 {[%emt 0:00:05]} 3. Nc3 {[%emt 0:00:07]} d5 {[%emt 0:00:03]} 4. cxd5 {[%emt 0:00:48]} exd5 {[%emt 0:00:05]} 5. Bg5 {[%emt 0:00:06]} c6 {[%emt 0:00:04]} 6. e3 {[%emt 0:00:05]} h6 {[%emt 0:00:15]} 7. Bh4 {[%emt 0:00:07]} Be7 {[%emt 0:00:05]} 8. Bd3 {[%emt 0:00:16]} O-O {[%emt 0:00:10]} 9. Nge2 {[%emt 0:00:24]} Ne8 {[%emt 0:00:20]} 10. Bxe7 {[%emt 0:02:02]} Qxe7 {[%emt 0:00:05]} 11. O-O {[%emt 0:00:18]} Nd6 {[%emt 0:00:49]} 12. Qc2 {[%emt 0:02:47]} Nd7 {[%emt 0:01:59]} 13. Rae1 {[%emt 0:05:59]} Nf6 {[%emt 0:00:52]} 14. Ng3 {[%emt 0:03:03]} h5 {[%emt 0:02:33]} 15. f3 {[%emt 0:04:23]} h4 {[%emt 0:00:15]} 16. Nh1 {[%emt 0:00:15]} Nh5 {[%emt 0:00:39]} 17. Qd2 {[%emt 0:19:06]} Qg5 {[%emt 0:04:44]} 18. Nf2 {[%emt 0:04:04]} h3 {[%emt 0:04:46]} 19. g4 {[%emt 0:02:15]} Qh4 {[%emt 0:17:16]} 20. Kh1 {[%emt 0:03:15]} Nf6 {[%emt 0:06:15]} 21. Rg1 {[%emt 0:00:41]} Nh7 {[%emt 0:15:35]} 22. Rg3 {[%emt 0:07:09]} f5 {[%emt 0:07:58]} 23. Rxh3 {[%emt 0:03:35]} Qf6 {[%emt 0:00:43]} 24. f4 {[%emt 0:03:06]} Ne4 {[%emt 0:01:58]} 25. Bxe4 {[%emt 0:03:01]} fxe4 {[%emt 0:00:29]} 26. Rg1 {[%emt 0:01:47]} Ng5 {[%emt 0:01:22]} 27. Rhg3 {[%emt 0:07:04]} Nf3 {[%emt 0:02:03]} 28. Rxf3 {[%emt 0:00:04]} exf3 {[%emt 0:00:05]} 29. Qd1 {[%emt 0:00:24]} g5 {[%emt 0:05:47]} 30. f5 {[%emt 0:01:10]} b6 {[%emt 0:04:00]} 31. e4 {[%emt 0:05:43]} dxe4 {[%emt 0:01:34]} 32. Ncxe4 {[%emt 0:00:57]} Qe7 {[%emt 0:01:14]} 33. Qxf3 {[%emt 0:00:06]} c5 {[%emt 0:03:34]} 34. f6 {[%emt 0:03:52]} Bb7 {[%emt 0:01:40]} 35. Re1 {[%emt 0:02:24]} Rae8 {[%emt 0:02:40]} 36. Kg1 {[%emt 0:00:32]} Qh7 {[%emt 0:02:15]} 37. dxc5 {[%emt 0:02:32]} bxc5 {[%emt 0:01:18]} 38. Re2 {[%emt 0:01:20]} Bd5 {[%emt 0:01:59]} 39. f7+ {[%emt 0:04:14]} Qxf7 {[%emt 0:03:28]} 40. Nf6+ {[%emt 0:00:15]} Kh8 {[%emt 0:01:17]} 41. Qh3+ {[%emt 0:01:27]} Kg7 {[%emt 0:00:05]} 42. Nxe8+ {[%emt 0:00:51]} Rxe8 {[%emt 0:00:04]} 43. Qc3+ {[%emt 0:00:11]} Kg8 {[%emt 0:00:12]} 44. Re5 {[%emt 0:01:11]} Rxe5 {[%emt 0:00:48]} 45. Qxe5 {[%emt 0:00:06]} Qf3 {[%emt 0:00:17]} 46. Qxg5+ {[%emt 0:00:41]} Kh8 {[%emt 0:00:05]} 47. Qe5+ {[%emt 0:00:44]} Kg8 {[%emt 0:00:09]} 48. Kf1 {[%emt 0:03:09]} Qg2+ {[%emt 0:01:01]} 49. Ke2 {[%emt 0:00:08]} Bc4+ {[%emt 0:01:16]} 50. Ke3 {[%emt 0:00:18]} Qf1 {[%emt 0:00:18]} 51. Qb8+ {[%emt 0:01:37]} Kg7 {[%emt 0:00:15]} 52. Qxa7+ {[%emt 0:00:39]} Kh8 {[%emt 0:00:09]} 53. Qb8+ {[%emt 0:00:06]} Kh7 {[%emt 0:00:16]} 54. Qc7+ {[%emt 0:00:08]} Kg8 {[%emt 0:00:09]} 55. Qd8+ {[%emt 0:01:03]} Kg7 {[%emt 0:00:23]} 56. Qg5+ {[%emt 0:00:11]} Kh7 {[%emt 0:00:09]} 57. Qf5+ {[%emt 0:00:09]} Kg8 {[%emt 0:00:10]} 58. Qxc5 {[%emt 0:03:06]} Qc1+ {[%emt 0:01:08]} 59. Kd4 {[%emt 0:00:42]} Qxb2+ {[%emt 0:01:18]} 60. Kxc4 {[%emt 0:00:09]} Qxa2+ {[%emt 0:00:10]} 61. Kd3 {[%emt 0:00:07]} Qb1+ {[%emt 0:01:29]} 62. Qc2 {[%emt 0:00:06]} Qf1+ {[%emt 0:00:09]} 63. Ke3 {[%emt 0:00:08]} Qg2 {[%emt 0:00:24]} 64. Qg6+ {[%emt 0:00:21]} Kh8 {[%emt 0:00:11]} 65. Qh6+ {[%emt 0:00:05]} Kg8 {[%emt 0:00:08]} 66. Qg5+ {[%emt 0:00:02]} Kh8 {[%emt 0:00:07]} 67. Qd8+ {[%emt 0:00:03]} Kg7 {[%emt 0:00:06]} 68. Qc7+ {[%emt 0:00:04]} Kh8 {[%emt 0:00:06]} 69. Qb8+ {[%emt 0:00:03]} Kg7 {[%emt 0:00:12]} 70. Qe5+ {[%emt 0:00:03]} Kg8 {[%emt 0:00:07]} 71. h4 {[%emt 0:00:52]} Qf1 {[%emt 0:00:11]} 72. Kf3 {[%emt 0:00:09]} 1-0

[Event "FIDE WCCC Open-12 2024"]
[Site "Montesilvano"]
[Date "2024.11.18"]
[Round "2.8"]
[White "Qu, Haoming"]
[Black "Diachek, Andrii"]
[Result "1-0"]
[ECO "B50"]
[WhiteElo "1969"]
[BlackElo "2162"]
[PlyCount "71"]
[EventDate "2024.11.18"]
[EventType "swiss"]
[EventCountry "ITA"]
[TimeControl "5400+30"]

1. e4 {[%emt 0:00:08]} c5 {[%emt 0:00:07]} 2. Nf3 {[%emt 0:00:22]} d6 {[%emt 0:00:04]} 3. c3 {[%emt 0:00:23]} Nf6 {[%emt 0:00:06]} 4. h3 {[%emt 0:00:06]} Nc6 {[%emt 0:00:07]} 5. Bd3 {[%emt 0:00:15]} d5 {[%emt 0:00:05]} 6. e5 {[%emt 0:01:33]} Nd7 {[%emt 0:00:06]} 7. Bb5 {[%emt 0:01:25]} Qb6 {[%emt 0:01:16]} 8. a4 {[%emt 0:07:18]} a6 {[%emt 0:03:30]} 9. Bxc6 {[%emt 0:00:41]} Qxc6 {[%emt 0:00:15]} 10. O-O {[%emt 0:00:42]} e6 {[%emt 0:04:38]} 11. d4 {[%emt 0:01:03]} b5 {[%emt 0:04:59]} 12. axb5 {[%emt 0:11:00]} axb5 {[%emt 0:00:35]} 13. Rxa8 {[%emt 0:00:23]} Qxa8 {[%emt 0:00:06]} 14. Na3 {[%emt 0:00:18]} b4 {[%emt 0:11:48]} 15. cxb4 {[%emt 0:06:41]} cxb4 {[%emt 0:01:29]} 16. Nb5 {[%emt 0:05:26]} Qa5 {[%emt 0:05:09]} 17. Nd6+ {[%emt 0:02:34]} Bxd6 {[%emt 0:00:06]} 18. exd6 {[%emt 0:00:01]} O-O {[%emt 0:03:56]} 19. Bd2 {[%emt 0:06:05]} Ba6 {[%emt 0:10:52]} 20. Re1 {[%emt 0:01:38]} Nf6 {[%emt 0:04:49]} 21. Bg5 {[%emt 0:19:05]} Qb6 {[%emt 0:03:52]} 22. Ne5 {[%emt 0:02:01]} Ne4 {[%emt 0:18:59]} 23. Be7 {[%emt 0:01:06]} Re8 {[%emt 0:00:27]} 24. Qa4 {[%emt 0:00:52]} Ra8 {[%emt 0:03:05]} 25. Qc6 {[%emt 0:04:00]} Qxc6 {[%emt 0:06:42]} 26. Nxc6 {[%emt 0:00:01]} Bc8 {[%emt 0:01:42]} 27. Rc1 {[%emt 0:01:49]} f6 {[%emt 0:01:46]} 28. f3 {[%emt 0:05:22]} Nd2 {[%emt 0:00:44]} 29. Nxb4 {[%emt 0:01:56]} Kf7 {[%emt 0:00:48]} 30. Kf2 {[%emt 0:01:30]} Ke8 {[%emt 0:00:55]} 31. Rc3 {[%emt 0:03:49]} Bd7 {[%emt 0:03:09]} 32. Nd3 {[%emt 0:01:55]} Rb8 {[%emt 0:02:03]} 33. Rc7 {[%emt 0:02:39]} Nb3 {[%emt 0:05:10]} 34. Ke3 {[%emt 0:02:39]} Rc8 {[%emt 0:00:44]} 35. Ra7 {[%emt 0:04:06]} Rb8 {[%emt 0:02:00]} 36. g4 {[%emt 0:00:50]} 1-0

[Event "FIDE WCCC Open-12 2024"]
[Site "Montesilvano"]
[Date "2024.11.18"]
[Round "2.9"]
[White "El Zein, Bassam"]
[Black "Shilon Rahav, Eliran"]
[Result "0-1"]
[ECO "A37"]
[WhiteElo "1947"]
[BlackElo "2150"]
[PlyCount "118"]
[EventDate "2024.11.18"]
[EventType "swiss"]
[EventCountry "ITA"]
[TimeControl "5400+30"]

1. Nf3 {[%emt 0:00:03]} c5 {[%emt 0:00:15]} 2. g3 {[%emt 0:00:05]} Nc6 {[%emt 0:00:09]} 3. Bg2 {[%emt 0:00:06]} e5 {[%emt 0:01:03]} 4. c4 {[%emt 0:00:18]} g6 {[%emt 0:00:17]} 5. Nc3 {[%emt 0:00:16]} Bg7 {[%emt 0:00:42]} 6. O-O {[%emt 0:00:10]} Nge7 {[%emt 0:00:09]} 7. a3 {[%emt 0:00:09]} d6 {[%emt 0:01:39]} 8. Rb1 {[%emt 0:00:42]} a5 {[%emt 0:00:24]} 9. Ne1 {[%emt 0:00:07]} Be6 {[%emt 0:00:28]} 10. d3 {[%emt 0:00:20]} O-O {[%emt 0:01:20]} 11. Nc2 {[%emt 0:00:14]} d5 {[%emt 0:01:52]} 12. cxd5 {[%emt 0:01:11]} Nxd5 {[%emt 0:00:20]} 13. Ne4 {[%emt 0:01:05]} Qe7 {[%emt 0:03:43]} 14. Ng5 {[%emt 0:02:13]} Rfd8 {[%emt 0:03:24]} 15. Nxe6 {[%emt 0:00:31]} Qxe6 {[%emt 0:00:47]} 16. Qe1 {[%emt 0:02:36]} b5 {[%emt 0:02:57]} 17. Ne3 {[%emt 0:00:37]} Nde7 {[%emt 0:02:49]} 18. Bd2 {[%emt 0:00:47]} a4 {[%emt 0:02:44]} 19. Nd1 {[%emt 0:02:36]} Rac8 {[%emt 0:04:54]} 20. Nc3 {[%emt 0:01:10]} Nd4 {[%emt 0:00:38]} 21. Ne4 {[%emt 0:02:57]} f5 {[%emt 0:02:00]} 22. Ng5 {[%emt 0:01:39]} Qb3 {[%emt 0:02:02]} 23. Nf3 {[%emt 0:01:20]} Nc2 {[%emt 0:11:19]} 24. Qc1 {[%emt 0:00:57]} c4 {[%emt 0:02:30]} 25. dxc4 {[%emt 0:01:40]} e4 {[%emt 0:00:30]} 26. Ng5 {[%emt 0:03:41]} Nd4 {[%emt 0:03:14]} 27. Re1 {[%emt 0:01:52]} h6 {[%emt 0:00:48]} 28. Nh3 {[%emt 0:02:07]} Rxc4 {[%emt 0:00:19]} 29. Bc3 {[%emt 0:02:46]} Nd5 {[%emt 0:15:27]} 30. e3 {[%emt 0:02:14]} Nxc3 {[%emt 0:01:14]} 31. bxc3 {[%emt 0:00:19]} Rxc3 {[%emt 0:00:22]} 32. Rxb3 {[%emt 0:02:11]} Rxc1 {[%emt 0:00:10]} 33. Rxc1 {[%emt 0:00:31]} Ne2+ {[%emt 0:00:16]} 34. Kh1 {[%emt 0:00:42]} axb3 {[%emt 0:01:07]} 35. Rb1 {[%emt 0:00:11]} b2 {[%emt 0:00:29]} 36. Bf1 {[%emt 0:00:20]} Rd2 {[%emt 0:00:24]} 37. Nf4 {[%emt 0:01:40]} Nc3 {[%emt 0:00:08]} 38. Rxb2 {[%emt 0:00:04]} Rxb2 {[%emt 0:00:06]} 39. Nxg6 {[%emt 0:00:08]} Rxf2 {[%emt 0:00:20]} 40. Bh3 {[%emt 0:00:07]} Kf7 {[%emt 0:00:24]} 41. Nf4 {[%emt 0:00:02]} Rxf4 {[%emt 0:00:44]} 42. gxf4 {[%emt 0:00:17]} Kf6 {[%emt 0:00:04]} 43. Bf1 {[%emt 0:00:13]} Bf8 {[%emt 0:00:01]} 44. a4 {[%emt 0:00:12]} bxa4 {[%emt 0:00:05]} 45. Bc4 {[%emt 0:00:06]} a3 {[%emt 0:00:03]} 46. h4 {[%emt 0:00:07]} a2 {[%emt 0:00:06]} 47. Bxa2 {[%emt 0:00:03]} Nxa2 {[%emt 0:00:04]} 48. h5 {[%emt 0:00:06]} Bc5 {[%emt 0:00:03]} 49. Kg2 {[%emt 0:00:04]} Bxe3 {[%emt 0:00:04]} 50. Kg3 {[%emt 0:00:02]} Nc3 {[%emt 0:00:06]} 51. Kh4 {[%emt 0:00:05]} Bxf4 {[%emt 0:00:07]} 52. Kh3 {[%emt 0:00:05]} e3 {[%emt 0:00:07]} 53. Kg2 {[%emt 0:00:07]} e2 {[%emt 0:00:05]} 54. Kf2 {[%emt 0:00:04]} Bg3+ {[%emt 0:00:05]} 55. Kxg3 {[%emt 0:00:04]} e1=Q+ {[%emt 0:00:05]} 56. Kh3 {[%emt 0:00:04]} Qe3+ {[%emt 0:00:06]} 57. Kg2 {[%emt 0:00:06]} Ne4 {[%emt 0:00:05]} 58. Kh2 {[%emt 0:00:07]} Qg3+ {[%emt 0:00:03]} 59. Kh1 {[%emt 0:00:05]} Nf2# {[%emt 0:00:02]} 0-1

[Event "FIDE WCCC Open-12 2024"]
[Site "Montesilvano"]
[Date "2024.11.18"]
[Round "2.10"]
[White "Golubovic, Erik"]
[Black "Gao, Heye"]
[Result "1-0"]
[ECO "E07"]
[WhiteElo "2147"]
[BlackElo "1933"]
[PlyCount "73"]
[EventDate "2024.11.18"]
[EventType "swiss"]
[EventCountry "ITA"]
[TimeControl "5400+30"]

1. d4 {[%emt 0:00:02]} d5 {[%emt 0:00:28]} 2. c4 {[%emt 0:00:24]} c6 {[%emt 0:00:29]} 3. Nf3 {[%emt 0:00:17]} Nf6 {[%emt 0:00:39]} 4. Nc3 {[%emt 0:00:17]} e6 {[%emt 0:00:42]} 5. g3 {[%emt 0:01:07]} Nbd7 {[%emt 0:01:58]} 6. Bg2 {[%emt 0:01:54]} Be7 {[%emt 0:00:49]} 7. O-O {[%emt 0:00:53]} O-O {[%emt 0:02:38]} 8. Re1 {[%emt 0:07:48]} dxc4 {[%emt 0:05:31]} 9. Bg5 {[%emt 0:03:25]} b5 {[%emt 0:05:34]} 10. Ne5 {[%emt 0:04:26]} Nxe5 {[%emt 0:01:09]} 11. dxe5 {[%emt 0:00:02]} Nd5 {[%emt 0:01:02]} 12. Bxe7 {[%emt 0:01:56]} Qxe7 {[%emt 0:00:33]} 13. Ne4 {[%emt 0:03:14]} Bd7 {[%emt 0:05:04]} 14. Qd4 {[%emt 0:04:02]} f6 {[%emt 0:04:46]} 15. b3 {[%emt 0:09:52]} fxe5 {[%emt 0:06:24]} 16. Qxe5 {[%emt 0:00:22]} cxb3 {[%emt 0:03:32]} 17. axb3 {[%emt 0:00:44]} Nf6 {[%emt 0:02:50]} 18. Red1 {[%emt 0:06:22]} Nd5 {[%emt 0:04:32]} 19. Bh3 {[%emt 0:08:03]} a5 {[%emt 0:10:48]} 20. Ng5 {[%emt 0:08:50]} h6 {[%emt 0:04:48]} 21. Ne4 {[%emt 0:05:12]} a4 {[%emt 0:06:04]} 22. bxa4 {[%emt 0:01:18]} Rxa4 {[%emt 0:00:59]} 23. Rac1 {[%emt 0:03:24]} Ra2 {[%emt 0:09:03]} 24. Nc5 {[%emt 0:03:02]} Re8 {[%emt 0:06:21]} 25. e4 {[%emt 0:04:46]} Nb6 {[%emt 0:03:56]} 26. Qc7 {[%emt 0:02:55]} Qf6 {[%emt 0:03:28]} 27. Rf1 {[%emt 0:02:39]} Qd8 {[%emt 0:00:43]} 28. Qxd8 {[%emt 0:00:27]} Rxd8 {[%emt 0:00:13]} 29. Nxd7 {[%emt 0:00:07]} Nc4 {[%emt 0:00:52]} 30. Bxe6+ {[%emt 0:00:06]} Kh7 {[%emt 0:00:12]} 31. Bxc4 {[%emt 0:00:16]} bxc4 {[%emt 0:00:12]} 32. Nb6 {[%emt 0:00:34]} Re2 {[%emt 0:00:50]} 33. Rxc4 {[%emt 0:00:15]} Re8 {[%emt 0:00:03]} 34. Rxc6 {[%emt 0:00:17]} R8xe4 {[%emt 0:00:06]} 35. Nd5 {[%emt 0:00:18]} Rd2 {[%emt 0:00:48]} 36. Ne3 {[%emt 0:00:13]} Ra4 {[%emt 0:00:16]} 37. Rc2 {[%emt 0:00:23]} 1-0

[Event "FIDE WCCC Open-12 2024"]
[Site "Montesilvano"]
[Date "2024.11.18"]
[Round "2.11"]
[White "Zhandos, Akarys"]
[Black "Belin, Anton"]
[Result "1-0"]
[ECO "C12"]
[WhiteElo "1932"]
[BlackElo "2138"]
[PlyCount "79"]
[EventDate "2024.11.18"]
[EventType "swiss"]
[EventCountry "ITA"]
[TimeControl "5400+30"]

1. e4 {[%emt 0:00:12]} e6 {[%emt 0:00:23]} 2. d4 {[%emt 0:01:32]} d5 {[%emt 0:00:35]} 3. Nc3 {[%emt 0:00:25]} Nf6 {[%emt 0:01:12]} 4. Bg5 {[%emt 0:00:29]} h6 {[%emt 0:00:50]} 5. Bxf6 {[%emt 0:01:47]} Qxf6 {[%emt 0:00:27]} 6. exd5 {[%emt 0:00:47]} Bb4 {[%emt 0:00:09]} 7. dxe6 {[%emt 0:01:58]} Bxe6 {[%emt 0:01:59]} 8. Nf3 {[%emt 0:01:35]} O-O {[%emt 0:02:29]} 9. Be2 {[%emt 0:01:11]} c5 {[%emt 0:01:47]} 10. O-O {[%emt 0:03:26]} Rd8 {[%emt 0:02:06]} 11. Ne4 {[%emt 0:21:02]} Qf4 {[%emt 0:02:19]} 12. Ng3 {[%emt 0:01:01]} cxd4 {[%emt 0:06:35]} 13. a3 {[%emt 0:01:12]} Ba5 {[%emt 0:01:15]} 14. b4 {[%emt 0:00:37]} Bc7 {[%emt 0:01:05]} 15. Bd3 {[%emt 0:00:15]} Nd7 {[%emt 0:02:53]} 16. Nxd4 {[%emt 0:04:15]} Bg4 {[%emt 0:05:24]} 17. Nde2 {[%emt 0:01:19]} Qe5 {[%emt 0:04:48]} 18. f3 {[%emt 0:06:49]} Be6 {[%emt 0:02:30]} 19. Kh1 {[%emt 0:10:38]} Nf6 {[%emt 0:04:48]} 20. Qd2 {[%emt 0:02:58]} h5 {[%emt 0:08:49]} 21. Rae1 {[%emt 0:06:25]} a6 {[%emt 0:03:51]} 22. Nc3 {[%emt 0:03:35]} Qd4 {[%emt 0:03:59]} 23. Nce4 {[%emt 0:03:20]} Rd5 {[%emt 0:06:09]} 24. Nxf6+ {[%emt 0:06:25]} Qxf6 {[%emt 0:00:10]} 25. f4 {[%emt 0:03:14]} Rad8 {[%emt 0:02:28]} 26. Qe2 {[%emt 0:00:55]} Qh4 {[%emt 0:01:32]} 27. Qf3 {[%emt 0:02:24]} g6 {[%emt 0:03:13]} 28. Bxg6 {[%emt 0:07:11]} Bg4 {[%emt 0:02:15]} 29. Qc3 {[%emt 0:00:17]} Rc8 {[%emt 0:03:00]} 30. Qb3 {[%emt 0:03:49]} Be6 {[%emt 0:00:22]} 31. Rxe6 {[%emt 0:00:33]} fxe6 {[%emt 0:00:07]} 32. Be4 {[%emt 0:04:54]} Rcd8 {[%emt 0:02:46]} 33. Bxd5 {[%emt 0:00:00]} Rxd5 {[%emt 0:00:06]} 34. Qc4 {[%emt 0:00:00]} Qd8 {[%emt 0:01:36]} 35. Qe4 {[%emt 0:00:00]} Qf6 {[%emt 0:00:16]} 36. c4 {[%emt 0:00:00]} Rd4 {[%emt 0:00:08]} 37. Nxh5 {[%emt 0:00:00]} Qh8 {[%emt 0:00:47]} 38. Qxe6+ {[%emt 0:00:00]} Kf8 {[%emt 0:00:41]} 39. Re1 {[%emt 0:00:00]} Qxh5 {[%emt 0:00:44]} 40. Qf6+ {[%emt 0:00:00]} 1-0

[Event "FIDE WCCC Open-12 2024"]
[Site "Montesilvano"]
[Date "2024.11.18"]
[Round "2.12"]
[White "Ambartsumian, Tyhran"]
[Black "Zhang, Haoxuan"]
[Result "1/2-1/2"]
[ECO "B40"]
[WhiteElo "2123"]
[BlackElo "1951"]
[PlyCount "107"]
[EventDate "2024.11.18"]
[EventType "swiss"]
[EventCountry "ITA"]
[TimeControl "5400+30"]

1. e4 {[%emt 0:00:53]} c5 {[%emt 0:00:34]} 2. Nf3 {[%emt 0:00:06]} e6 {[%emt 0:00:12]} 3. b3 {[%emt 0:00:06]} Nc6 {[%emt 0:01:00]} 4. Bb2 {[%emt 0:00:07]} a6 {[%emt 0:01:23]} 5. c4 {[%emt 0:01:26]} d6 {[%emt 0:00:59]} 6. d4 {[%emt 0:00:07]} cxd4 {[%emt 0:01:31]} 7. Nxd4 {[%emt 0:00:06]} Qc7 {[%emt 0:02:02]} 8. Nxc6 {[%emt 0:07:12]} Qxc6 {[%emt 0:02:22]} 9. Bd3 {[%emt 0:00:11]} Nf6 {[%emt 0:00:55]} 10. Nc3 {[%emt 0:00:56]} Be7 {[%emt 0:01:01]} 11. O-O {[%emt 0:01:34]} b6 {[%emt 0:02:50]} 12. Re1 {[%emt 0:05:45]} Bb7 {[%emt 0:02:27]} 13. Qf3 {[%emt 0:01:10]} Nd7 {[%emt 0:11:58]} 14. Qg3 {[%emt 0:27:53]} Bf6 {[%emt 0:09:36]} 15. Rad1 {[%emt 0:04:08]} Rd8 {[%emt 0:09:35]} 16. Bc2 {[%emt 0:08:43]} Ne5 {[%emt 0:26:43]} 17. Nd5 {[%emt 0:02:14]} Nf3+ {[%emt 0:00:15]} 18. Qxf3 {[%emt 0:03:33]} Bxb2 {[%emt 0:00:05]} 19. Qe3 {[%emt 0:00:13]} Qc5 {[%emt 0:01:54]} 20. Nxb6 {[%emt 0:01:38]} Qxe3 {[%emt 0:00:07]} 21. Rxe3 {[%emt 0:00:05]} Bc6 {[%emt 0:00:14]} 22. Nd5 {[%emt 0:01:58]} Bb7 {[%emt 0:01:27]} 23. Nb4 {[%emt 0:01:27]} a5 {[%emt 0:00:15]} 24. Nd3 {[%emt 0:00:06]} Bd4 {[%emt 0:00:05]} 25. Re2 {[%emt 0:00:33]} O-O {[%emt 0:00:24]} 26. Ne1 {[%emt 0:03:49]} Bc5 {[%emt 0:00:21]} 27. Kf1 {[%emt 0:00:55]} e5 {[%emt 0:00:39]} 28. Nd3 {[%emt 0:04:51]} Bd4 {[%emt 0:00:10]} 29. a3 {[%emt 0:02:26]} Ba6 {[%emt 0:00:06]} 30. Bb1 {[%emt 0:00:49]} Rc8 {[%emt 0:01:35]} 31. Ba2 {[%emt 0:00:43]} a4 {[%emt 0:00:35]} 32. Nb4 {[%emt 0:01:26]} axb3 {[%emt 0:00:15]} 33. Bxb3 {[%emt 0:01:06]} Bxc4 {[%emt 0:00:09]} 34. Bxc4 {[%emt 0:00:03]} Rxc4 {[%emt 0:00:05]} 35. Rc2 {[%emt 0:00:56]} Rc5 {[%emt 0:00:41]} 36. Ra2 {[%emt 0:01:40]} Ra8 {[%emt 0:00:09]} 37. Nc2 {[%emt 0:00:45]} Rc4 {[%emt 0:00:12]} 38. Nxd4 {[%emt 0:00:21]} exd4 {[%emt 0:00:11]} 39. Rb2 {[%emt 0:01:34]} g6 {[%emt 0:01:37]} 40. Rd3 {[%emt 0:02:23]} Raa4 {[%emt 0:00:31]} 41. Ke2 {[%emt 0:00:55]} Kg7 {[%emt 0:00:39]} 42. Kd2 {[%emt 0:02:18]} Kf6 {[%emt 0:00:27]} 43. f4 {[%emt 0:01:15]} Ke6 {[%emt 0:01:04]} 44. Rb6 {[%emt 0:00:28]} Ke7 {[%emt 0:01:41]} 45. Rb7+ {[%emt 0:00:21]} Kf6 {[%emt 0:00:34]} 46. g4 {[%emt 0:00:44]} Ke6 {[%emt 0:05:31]} 47. Rb6 {[%emt 0:00:05]} Ke7 {[%emt 0:00:15]} 48. Rb7+ {[%emt 0:00:55]} Ke6 {[%emt 0:00:52]} 49. f5+ {[%emt 0:00:18]} gxf5 {[%emt 0:00:33]} 50. exf5+ {[%emt 0:00:15]} Kf6 {[%emt 0:00:10]} 51. h4 {[%emt 0:00:04]} h6 {[%emt 0:00:04]} 52. Rd7 {[%emt 0:00:05]} Ra6 {[%emt 0:00:06]} 53. Rg3 {[%emt 0:05:57]} Rb6 {[%emt 0:01:07]} 54. g5+ {[%emt 0:00:33]} 1/2-1/2

[Event "FIDE WCCC Open-12 2024"]
[Site "Montesilvano"]
[Date "2024.11.18"]
[Round "2.13"]
[White "Rueda Ahumada, Gabriel Omar"]
[Black "Luger, Sam"]
[Result "0-1"]
[ECO "A36"]
[WhiteElo "1928"]
[BlackElo "2094"]
[PlyCount "98"]
[EventDate "2024.11.18"]
[EventType "swiss"]
[EventCountry "ITA"]
[TimeControl "5400+30"]

1. c4 {[%emt 0:00:26]} c5 {[%emt 0:00:18]} 2. Nc3 {[%emt 0:01:00]} g6 {[%emt 0:00:06]} 3. g3 {[%emt 0:03:20]} Bg7 {[%emt 0:00:59]} 4. Bg2 {[%emt 0:01:14]} Nc6 {[%emt 0:01:10]} 5. d3 {[%emt 0:01:09]} a6 {[%emt 0:02:14]} 6. e4 {[%emt 0:04:16]} b5 {[%emt 0:00:36]} 7. Nge2 {[%emt 0:02:00]} Rb8 {[%emt 0:02:07]} 8. O-O {[%emt 0:07:56]} b4 {[%emt 0:07:21]} 9. Nd5 {[%emt 0:00:26]} d6 {[%emt 0:08:11]} 10. f4 {[%emt 0:08:41]} Bg4 {[%emt 0:16:43]} 11. h3 {[%emt 0:04:03]} Bxe2 {[%emt 0:01:13]} 12. Qxe2 {[%emt 0:00:05]} Nd4 {[%emt 0:05:27]} 13. Qd1 {[%emt 0:00:06]} Nf6 {[%emt 0:07:40]} 14. Ne3 {[%emt 0:08:26]} Nd7 {[%emt 0:11:10]} 15. Kh2 {[%emt 0:08:06]} O-O {[%emt 0:09:00]} 16. Rf2 {[%emt 0:07:59]} e6 {[%emt 0:06:16]} 17. Rb1 {[%emt 0:07:18]} a5 {[%emt 0:04:51]} 18. b3 {[%emt 0:04:42]} Nb6 {[%emt 0:05:34]} 19. a4 {[%emt 0:03:21]} bxa3 {[%emt 0:02:35]} 20. Bxa3 {[%emt 0:00:21]} Nd7 {[%emt 0:00:56]} 21. Nf1 {[%emt 0:02:36]} Rb6 {[%emt 0:01:42]} 22. Ra2 {[%emt 0:02:55]} Qc7 {[%emt 0:02:12]} 23. Nd2 {[%emt 0:01:47]} Nb8 {[%emt 0:00:41]} 24. Bb2 {[%emt 0:14:05]} Nbc6 {[%emt 0:00:36]} 25. Ra3 {[%emt 0:00:10]} Rfb8 {[%emt 0:00:49]} 26. Bc3 {[%emt 0:00:44]} Nf3+ {[%emt 0:00:34]} 27. Nxf3 {[%emt 0:00:44]} Bxc3 {[%emt 0:00:07]} 28. f5 {[%emt 0:00:15]} Bg7 {[%emt 0:01:03]} 29. fxe6 {[%emt 0:00:54]} fxe6 {[%emt 0:00:08]} 30. h4 {[%emt 0:01:09]} Qe7 {[%emt 0:00:48]} 31. Bh3 {[%emt 0:00:35]} Rf8 {[%emt 0:00:49]} 32. Kg2 {[%emt 0:01:55]} Qf6 {[%emt 0:00:49]} 33. Ra2 {[%emt 0:00:24]} Rb7 {[%emt 0:00:59]} 34. Nh2 {[%emt 0:02:28]} Rbf7 {[%emt 0:00:38]} 35. Rc1 {[%emt 0:01:47]} Qe7 {[%emt 0:00:37]} 36. Re2 {[%emt 0:00:33]} Nd4 {[%emt 0:00:24]} 37. Ra2 {[%emt 0:00:11]} Nc6 {[%emt 0:00:21]} 38. h5 {[%emt 0:00:26]} Bd4 {[%emt 0:00:35]} 39. Ng4 {[%emt 0:00:37]} Kh8 {[%emt 0:00:32]} 40. hxg6 {[%emt 0:00:41]} hxg6 {[%emt 0:00:07]} 41. Qd2 {[%emt 0:00:21]} Rh7 {[%emt 0:00:32]} 42. Rh1 {[%emt 0:00:34]} Kg7 {[%emt 0:00:19]} 43. Rc2 {[%emt 0:00:34]} Ne5 {[%emt 0:00:41]} 44. Qd1 {[%emt 0:00:38]} Nf3 {[%emt 0:00:42]} 45. Nf2 {[%emt 0:00:25]} Qf6 {[%emt 0:00:51]} 46. Bg4 {[%emt 0:00:29]} Rxh1 {[%emt 0:00:39]} 47. Nxh1 {[%emt 0:00:10]} Ne5 {[%emt 0:00:18]} 48. Be2 {[%emt 0:00:37]} Qg5 {[%emt 0:00:26]} 49. Bf1 {[%emt 0:00:45]} Ng4 {[%emt 0:00:25]} 0-1